bitfinex/quotes_SOLUSD_20240708
["timestamp","ask_amount","ask_price","bid_price","bid_amount"]
[1720409395392,0.8520024,130.94,130.88,37.89]
[1720409395595,0.8520024,130.94,130.93,17.89]
[1720409400595,0.8520024,130.94,130.9,71.56]
[1720409400800,0.8520024,130.94,130.93,17.89]
[1720409402593,0.8520024,130.94,130.91,20.0]
[1720409402799,0.8520024,130.94,130.88,20.0]
[1720409403094,0.8520024,130.94,130.93,17.89]
[1720409404906,0.8520024,130.94,130.88,20.0]
[1720409405196,0.8520024,130.94,130.93,17.89]
[1720409405906,0.8520024,130.94,130.89,0.17]
[1720409406200,0.8520024,130.94,130.93,17.89]
[1720409406404,0.8520024,130.94,130.89,0.17]
[1720409406577,0.8520024,130.94,130.93,17.89]
[1720409407698,0.8520024,130.94,130.93,37.89]
[1720409408114,0.8520024,130.94,130.89,0.17]
[1720409408292,0.8520024,130.94,130.88,20.0]
[1720409408493,0.8520024,130.94,130.93,17.89]
[1720409410510,15.2835,130.99,130.93,108.3426]
[1720409410511,0.2,130.99,130.93,108.3426]
[1720409410711,6.6614,131.06,130.98,17.89]
[1720409410712,128.72072942,131.06,130.98,17.89]
[1720409410900,128.72072942,131.06,130.94,20.17]
[1720409410901,22.05932942,131.05,131.03,17.89]
[1720409411208,100.0,131.04,131.03,17.89]
[1720409411404,100.0,131.02,131.0,17.89]
[1720409411604,100.0,131.02,130.94,28.80454487]
[1720409411815,106.1399,131.0,130.94,20.0]
[1720409412111,100.0,130.98,130.97,17.89]
[1720409412310,106.1399,131.0,130.97,17.89]
[1720409412610,100.0,130.98,130.94,20.0]
[1720409412799,100.0,130.98,130.96,17.89]
[1720409412997,100.0,130.96,130.86,15.8061]
[1720409413199,6.1399,131.0,130.83,256.1]
[1720409413200,6.2722,130.93,130.83,87.3661]
[1720409413434,100.0,130.91,130.9,17.89]
[1720409413705,100.0,130.91,130.89,17.89]
[1720409413913,100.0,130.91,130.9,17.89]
[1720409415109,106.2722,130.93,130.9,17.89]
[1720409415314,106.2722,130.93,130.92,17.89]
[1720409415701,6.2722,130.93,130.92,17.89]
[1720409416223,6.2722,130.93,130.83,22.05392265]
[1720409416224,100.0,130.9,130.83,22.05392265]
[1720409416420,100.0,130.9,130.89,17.89]
[1720409417499,100.0,130.9,130.83,93.61392265]
[1720409417701,100.0,130.9,130.89,17.89]
[1720409419119,100.0,130.92,130.89,17.89]
[1720409419328,0.17,130.91,130.83,6.24782265]
[1720409419500,106.439,130.86,130.83,17.89]
[1720409419696,106.439,130.86,130.82,17.89]
[1720409419697,100.0,130.84,130.82,17.89]
[1720409420207,100.0,130.84,130.76,71.56]
[1720409420526,100.0,130.84,130.75,15.8699]
[1720409420732,100.0,130.84,130.77,35.81]
[1720409420903,106.439,130.86,130.78,20.0]
[1720409421239,106.439,130.86,130.8,35.81]
[1720409422712,106.439,130.86,130.81,20.0]
[1720409424343,106.439,130.86,130.75,6.06139487]
[1720409424527,0.17,130.87,130.71,0.2]
[1720409424528,100.0,130.78,130.71,0.2]
[1720409424704,6.1579,130.79,130.71,0.2]
[1720409424705,100.0,130.76,130.71,0.2]
[1720409427624,100.0,130.74,130.71,0.2]
[1720409428032,100.0,130.75,130.71,0.2]
[1720409430026,116.222,130.77,130.71,0.2]
[1720409432436,100.0,130.75,130.71,0.2]
[1720409433325,116.222,130.77,130.71,0.2]
[1720409433526,100.0,130.74,130.71,0.2]
[1720409434230,100.0,130.72,130.71,0.2]
[1720409435740,106.2724,130.72,130.71,0.2]
[1720409435947,106.4424,130.72,130.71,0.2]
[1720409436233,106.4424,130.72,130.61,1.0520024]
[1720409436234,100.0,130.68,130.61,1.0520024]
[1720409437533,100.0,130.68,130.61,21.0520024]
[1720409437734,16.2519,130.7,130.63,35.81]
[1720409438035,16.2519,130.7,130.64,20.0]
[1720409438245,100.0,130.69,130.63,35.81]
[1720409438539,100.17,130.69,130.63,35.81]
[1720409438841,100.0,130.67,130.63,35.81]
[1720409439737,100.0,130.69,130.63,35.81]
[1720409440135,16.2519,130.7,130.63,35.81]
[1720409440721,100.0,130.71,130.64,20.0]
[1720409440924,100.0,130.71,130.64,55.81]
[1720409441133,6.2724,130.72,130.64,55.81]
[1720409442138,6.2208,130.75,130.67,35.81]
[1720409442436,6.2208,130.75,130.68,20.0]
[1720409442822,106.2208,130.75,130.68,20.0]
[1720409443423,6.2208,130.75,130.68,20.0]
[1720409445728,106.2208,130.75,130.68,55.81]
[1720409446230,100.0,130.77,130.71,35.81]
[1720409446430,100.0,130.77,130.72,20.0]
[1720409454534,106.2545,130.79,130.72,20.0]
[1720409454959,100.0,130.81,130.74,35.81]
[1720409455140,15.0307,130.82,130.74,35.81]
[1720409455454,106.3227,130.83,130.75,35.7403]
[1720409456763,100.0,130.83,130.75,35.7403]
[1720409458749,100.0,130.81,130.75,35.7403]
[1720409458962,100.0,130.79,130.75,15.7403]
[1720409459139,100.0,130.79,130.74,35.81]
[1720409459851,100.0,130.77,130.74,35.81]
[1720409460059,100.0,130.77,130.71,35.81]
[1720409460552,6.4124,130.79,130.69,15.98]
[1720409460553,100.0,130.75,130.69,15.98]
[1720409460754,100.0,130.76,130.69,15.98]
[1720409460949,0.17,130.78,130.69,15.98]
[1720409460950,100.0,130.78,130.69,15.98]
[1720409461150,100.0,130.78,130.71,35.81]
[1720409461654,100.0,130.81,130.74,35.81]
[1720409462262,100.0,130.78,130.72,20.0]
[1720409462438,100.0,130.78,130.73,35.81]
[1720409462642,100.0,130.78,130.74,20.0]
[1720409463057,21.7444,130.83,130.74,20.0]
[1720409463058,100.0,130.81,130.74,20.0]
[1720409463551,100.0,130.79,130.74,20.0]
[1720409464764,100.0,130.81,130.74,20.0]
[1720409465468,121.7444,130.83,130.74,20.0]
[1720409465646,100.0,130.83,130.76,35.81]
[1720409466146,100.0,130.83,130.75,15.7688]
[1720409466354,100.0,130.83,130.76,55.81]
[1720409466543,100.0,130.81,130.76,55.81]
[1720409467445,100.0,130.81,130.76,20.0]
[1720409469663,100.0,130.83,130.76,20.0]
[1720409471073,100.0,130.85,130.77,35.81]
[1720409471293,5.34,130.87,130.8,35.81]
[1720409471572,5.34,130.87,130.83,35.81]
[1720409471750,5.34,130.87,130.84,20.0]
[1720409472254,5.34,130.87,130.86,35.81]
[1720409472455,5.34,130.87,130.86,55.81]
[1720409474169,5.34,130.87,130.86,20.0]
[1720409475353,5.34,130.87,130.86,20.17]
[1720409475871,5.34,130.87,130.86,20.0]
[1720409476258,5.34,130.87,130.86,20.17]
[1720409476861,5.34,130.87,130.86,20.0]
[1720409480561,5.34,130.87,130.85,35.81]
[1720409480768,105.34,130.87,130.8,5.7681]
[1720409481074,100.0,130.85,130.79,35.81]
[1720409481274,100.0,130.85,130.77,5.7681]
[1720409481577,111.8838,130.87,130.78,35.81]
[1720409482561,100.0,130.85,130.77,11.99145914]
[1720409482762,100.0,130.85,130.78,20.0]
[1720409484782,100.0,130.85,130.75,15.8764]
[1720409485775,11.8838,130.87,130.75,15.8764]
[1720409486082,11.8838,130.87,130.75,38.9464]
[1720409486289,5.34,130.87,130.78,40.27]
[1720409486463,5.34,130.87,130.79,25.9381]
[1720409486663,5.34,130.87,130.8,38.9194]
[1720409486864,100.0,130.93,130.82,40.27]
[1720409487075,6.4938,130.94,130.83,20.17]
[1720409487386,22.0271,130.97,130.84,21.6175]
[1720409487678,22.0271,130.97,130.85,20.0]
[1720409487883,22.0271,130.97,130.86,0.17]
[1720409488277,100.0,130.96,130.86,0.17]
[1720409489580,100.0,130.94,130.86,0.17]
[1720409491084,100.0,130.96,130.86,0.17]
[1720409491580,100.0,130.96,130.86,40.44]
[1720409491769,100.2,130.99,130.87,20.0]
[1720409491976,0.2,130.99,130.88,0.17]
[1720409492607,0.2,130.99,130.88,15.4583]
[1720409492897,0.2,130.99,130.9,5.7681]
[1720409493864,0.2,130.99,130.9,46.0381]
[1720409494895,0.2,130.99,130.91,20.17]
[1720409496675,100.2,130.99,130.91,20.17]
[1720409497596,100.0,130.97,130.9,40.27]
[1720409497767,100.0,130.97,130.88,15.4583]
[1720409497969,100.0,130.95,130.88,15.4583]
[1720409498175,106.2237,130.95,130.86,46.0381]
[1720409498377,106.2237,130.95,130.86,52.00841756]
[1720409498594,100.0,130.93,130.86,52.00841756]
[1720409498898,106.2237,130.95,130.86,52.00841756]
[1720409499195,6.2237,130.95,130.86,52.00841756]
[1720409499596,15.262,130.96,130.86,52.00841756]
[1720409499997,15.262,130.96,130.87,20.0]
[1720409500379,15.262,130.96,130.88,0.17]
[1720409500802,100.0,130.95,130.88,0.17]
[1720409501821,15.262,130.96,130.88,0.17]
[1720409502097,6.0132,130.98,130.88,0.17]
[1720409503593,100.0,130.97,130.88,0.17]
[1720409504502,6.0132,130.98,130.88,0.17]
[1720409504691,6.0132,130.98,130.92,35.73]
[1720409504996,6.0132,130.98,130.93,20.0]
[1720409505201,116.3059,130.99,130.93,20.0]
[1720409505707,0.2,130.99,130.93,20.0]
[1720409505905,0.2,130.99,130.95,35.73]
[1720409506707,0.2,130.99,130.93,20.0]
[1720409506882,0.2,130.99,130.92,20.17]
[1720409507083,0.2,130.99,130.93,0.17]
[1720409507298,0.2,130.99,130.94,5.7681]
[1720409507497,0.2,130.99,130.95,20.0]
[1720409508391,0.2,130.99,130.96,0.17]
[1720409509486,0.2,130.99,130.96,0.93343844]
[1720409509688,100.0,131.03,130.96,0.93343844]
[1720409509884,100.0,131.03,130.96,0.17]
[1720409511384,6.6351,131.05,130.96,0.17]
[1720409512099,15.4555,131.06,130.97,15.1609]
[1720409512289,0.8520024,131.07,130.98,20.17]
[1720409513280,0.8520024,131.07,130.98,60.35]
[1720409513604,0.8520024,131.07,130.99,5.7681]
[1720409513816,0.8520024,131.07,131.0,20.17]
[1720409514018,0.8520024,131.07,131.02,40.18]
[1720409514231,0.8520024,131.07,131.04,16.3116]
[1720409514394,6.2015,131.12,131.05,20.0]
[1720409514587,6.2015,131.15,131.06,0.17]
[1720409514787,0.8520024,131.2,131.08,23.07]
[1720409514996,0.8520024,131.2,131.1,40.18]
[1720409515204,0.8520024,131.2,131.11,20.17]
[1720409518908,0.8520024,131.2,131.14,40.18]
[1720409519209,0.8520024,131.2,131.15,20.17]
[1720409519596,0.8520024,131.2,131.15,20.0]
[1720409519787,100.2,131.19,131.11,46.28696647]
[1720409519985,100.2,131.19,130.99,15.0]
[1720409519986,100.2,131.19,131.05,7.661]
[1720409520212,0.2,131.19,131.07,45.9481]
[1720409520409,0.2,131.19,131.08,23.07]
[1720409520616,0.2,131.19,131.07,51.92115511]
[1720409521305,0.2,131.19,131.08,40.18]
[1720409521509,0.2,131.19,131.09,20.0]
[1720409522307,0.2,131.19,131.1,0.17]
[1720409523213,0.2,131.19,131.12,40.18]
[1720409523416,0.2,131.19,131.13,20.17]
[1720409524714,0.2,131.19,131.17,40.18]
[1720409524916,0.2,131.19,131.18,20.17]
[1720409525288,100.0,131.28,131.18,20.17]
[1720409525493,6.3515,131.29,131.18,20.17]
[1720409526199,6.3515,131.29,131.19,16.4282]
[1720409526495,6.3515,131.29,131.2,20.17]
[1720409526700,106.3515,131.29,131.2,20.17]
[1720409527020,6.3515,131.29,131.2,20.17]
[1720409527315,0.2,131.29,131.2,20.17]
[1720409527519,0.2,131.29,131.21,40.18]
[1720409527699,0.2,131.29,131.23,5.7681]
[1720409528014,0.2,131.29,131.24,20.0]
[1720409528712,0.2,131.29,131.22,20.0]
[1720409528896,0.2,131.29,131.23,0.17]
[1720409531302,0.8520024,131.33,131.23,0.17]
[1720409531794,0.8520024,131.33,131.24,40.18]
[1720409532001,0.8520024,131.33,131.25,20.17]
[1720409532310,6.6184,131.38,131.27,5.7681]
[1720409532519,6.6184,131.38,131.28,40.18]
[1720409532705,6.6184,131.38,131.29,20.17]
[1720409532908,100.0,131.37,131.29,20.17]
[1720409533316,6.6184,131.38,131.29,20.17]
[1720409533698,100.0,131.37,131.29,20.17]
[1720409533906,100.0,131.36,131.29,20.0]
[1720409534111,100.0,131.36,131.26,16.5375]
[1720409534112,100.0,131.36,131.27,20.0]
[1720409534403,100.0,131.32,131.25,40.18]
[1720409534604,100.0,131.32,131.22,15.2864]
[1720409534804,100.0,131.34,131.22,15.2864]
[1720409535116,100.0,131.34,131.22,21.40432354]
[1720409535512,100.0,131.32,131.22,21.40432354]
[1720409536701,100.0,131.3,131.22,6.11792354]
[1720409536902,6.4333,131.31,131.18,16.2658]
[1720409536903,100.0,131.26,131.18,16.2658]
[1720409537323,100.0,131.28,131.18,16.2658]
[1720409537502,100.0,131.28,131.18,22.27549551]
[1720409538206,100.0,131.28,131.19,20.0]
[1720409538608,100.0,131.28,131.18,22.27549551]
[1720409539198,106.4333,131.31,131.18,22.27549551]
[1720409539405,106.4333,131.31,131.19,0.17]
[1720409539805,100.0,131.29,131.19,0.17]
[1720409540012,106.4333,131.31,131.19,20.17]
[1720409540915,6.4333,131.31,131.19,20.17]
[1720409541120,115.1959,131.33,131.2,63.25]
[1720409541305,100.0,131.33,131.21,20.17]
[1720409541903,6.3309,131.34,131.21,20.17]
[1720409542206,121.5143,131.37,131.22,62.0992]
[1720409542406,121.5143,131.37,131.23,20.17]
[1720409542633,121.5143,131.37,131.23,43.24]
[1720409542929,106.3309,131.37,131.23,43.24]
[1720409543107,6.3309,131.37,131.23,43.24]
[1720409545018,0.2,131.39,131.28,44.746]
[1720409545219,0.2,131.39,131.3,40.18]
[1720409545420,0.2,131.39,131.31,20.17]
[1720409546413,0.04526651,131.42,131.31,43.24]
[1720409546616,0.2,131.49,131.35,21.676]
[1720409546909,100.2,131.49,131.38,40.18]
[1720409547115,100.2,131.49,131.39,20.17]
[1720409547116,0.2,131.49,131.39,20.17]
[1720409547323,0.2,131.49,131.4,21.676]
[1720409547707,0.2,131.49,131.41,20.17]
[1720409549009,0.2,131.49,131.42,40.18]
[1720409549209,0.2,131.49,131.43,20.17]
[1720409550229,100.2,131.49,131.4,21.676]
[1720409550733,100.2,131.49,131.33,61.856]
[1720409550734,100.0,131.45,131.33,61.856]
[1720409551119,0.17,131.46,131.33,21.676]
[1720409551435,100.0,131.46,131.33,21.676]
[1720409551635,100.0,131.46,131.35,40.18]
[1720409552014,100.0,131.44,131.35,40.18]
[1720409552616,100.0,131.46,131.35,40.18]
[1720409552831,100.0,131.46,131.36,20.0]
[1720409553554,100.0,131.46,131.37,0.17]
[1720409553724,0.2,131.49,131.37,0.17]
[1720409554315,100.0,131.44,131.37,0.17]
[1720409554921,100.0,131.44,131.36,20.0]
[1720409555120,100.0,131.46,131.36,20.0]
[1720409555330,100.0,131.44,131.36,20.0]
[1720409555514,100.0,131.46,131.36,20.0]
[1720409555712,0.2,131.49,131.39,40.18]
[1720409555941,0.2,131.49,131.4,20.17]
[1720409557934,0.2,131.49,131.4,20.0]
[1720409558237,0.2,131.49,131.39,20.0]
[1720409558436,100.2,131.49,131.39,20.0]
[1720409559248,100.2,131.49,131.4,0.17]
[1720409559428,0.2,131.49,131.4,0.17]
[1720409560016,0.2,131.49,131.4,40.35]
[1720409560224,0.2,131.49,131.41,20.0]
[1720409560435,0.2,131.49,131.42,0.17]
[1720409560941,0.2,131.49,131.41,20.0]
[1720409562736,0.2,131.49,131.42,0.17]
[1720409566729,0.2,131.49,131.43,21.8469]
[1720409567033,0.2,131.49,131.44,20.17]
[1720409567352,0.2,131.49,131.44,60.35]
[1720409569843,0.2,131.49,131.44,60.18]
[1720409571055,106.6501,131.58,131.45,0.17]
[1720409571557,1.0520024,131.59,131.45,0.17]
[1720409571762,1.0520024,131.59,131.45,30.731]
[1720409572063,101.0520024,131.59,131.46,20.0]
[1720409572230,1.0520024,131.59,131.47,0.17]
[1720409572430,1.0520024,131.59,131.48,15.2848]
[1720409572633,1.0520024,131.59,131.49,5.7681]
[1720409572860,1.0520024,131.59,131.5,0.17]
[1720409573633,101.0520024,131.59,131.5,0.17]
[1720409573831,1.0520024,131.59,131.5,0.17]
[1720409575839,1.0520024,131.59,131.51,15.1095]
[1720409576038,1.0520024,131.59,131.52,20.17]
[1720409576261,1.0520024,131.59,131.52,60.35]
[1720409576436,1.0520024,131.59,131.53,5.7681]
[1720409576632,1.0520024,131.59,131.54,20.17]
[1720409576863,100.0,131.68,131.55,12.4728]
[1720409577166,100.0,131.68,131.56,20.17]
[1720409577371,100.0,131.68,131.56,60.35]
[1720409578267,266.4993,131.7,131.57,44.1704]
[1720409578268,100.0,131.7,131.57,44.1704]
[1720409578576,0.8520024,131.73,131.58,20.17]
[1720409578577,100.8520024,131.73,131.58,20.17]
[1720409578737,100.8520024,131.73,131.6,40.18]
[1720409578941,0.8520024,131.73,131.61,20.17]
[1720409579556,0.8520024,131.73,131.64,40.18]
[1720409579757,0.8520024,131.73,131.65,20.17]
[1720409579758,100.8520024,131.73,131.65,20.17]
[1720409579980,100.8520024,131.73,131.65,20.0]
[1720409580267,6.2983,131.7,131.58,5.7681]
[1720409580473,100.0,131.69,131.58,5.7681]
[1720409580993,100.0,131.68,131.57,15.4416]
[1720409581275,0.17,131.67,131.57,15.4416]
[1720409581452,100.0,131.63,131.57,15.4416]
[1720409581651,100.0,131.63,131.54,5.7681]
[1720409581870,100.0,131.61,131.53,15.4416]
[1720409582264,6.4683,131.62,131.51,5.7681]
[1720409582265,100.0,131.58,131.51,5.7681]
[1720409582567,100.0,131.58,131.49,16.0224]
[1720409582976,0.17,131.59,131.49,16.0224]
[1720409583355,100.0,131.58,131.49,16.0224]
[1720409583670,100.0,131.56,131.47,5.7681]
[1720409584173,0.17,131.57,131.47,5.7681]
[1720409584665,100.0,131.55,131.47,5.7681]
[1720409585259,100.0,131.55,131.48,20.0]
[1720409585970,0.17,131.57,131.48,20.0]
[1720409586158,100.0,131.58,131.48,20.0]
[1720409586368,100.0,131.58,131.49,0.17]
[1720409587169,6.2983,131.62,131.49,0.17]
[1720409587466,100.0,131.65,131.51,48.7]
[1720409587672,6.4081,131.66,131.52,48.8381]
[1720409587862,100.0,131.69,131.52,48.8381]
[1720409588074,100.0,131.69,131.55,48.7]
[1720409588260,100.0,131.69,131.56,36.3071]
[1720409588779,100.0,131.71,131.59,48.7]
[1720409588980,100.8520024,131.73,131.6,20.17]
[1720409589398,0.8520024,131.73,131.6,43.07]
[1720409589761,0.8520024,131.73,131.63,48.7]
[1720409589956,0.8520024,131.73,131.64,20.17]
[1720409590361,0.8520024,131.73,131.65,16.74479288]
[1720409590562,0.8520024,131.73,131.66,20.17]
[1720409590761,0.8520024,131.73,131.67,0.60760057]
[1720409590981,0.8520024,131.73,131.68,0.77755442]
[1720409591166,0.8520024,131.73,131.68,0.60755442]
[1720409591967,0.8520024,131.73,131.66,20.17]
[1720409592974,0.8520024,131.73,131.67,5.7681]
[1720409593177,0.8520024,131.73,131.68,20.17]
[1720409594966,100.2,131.79,131.68,43.07]
[1720409594967,0.2,131.79,131.68,43.07]
[1720409596389,0.2,131.79,131.68,20.17]
[1720409596575,100.0,131.78,131.67,103.1681]
[1720409596760,100.0,131.78,131.67,54.4681]
[1720409596966,100.0,131.76,131.67,54.4681]
[1720409597266,100.0,131.76,131.65,16.1371]
[1720409597467,100.0,131.74,131.65,16.1371]
[1720409597877,100.0,131.77,131.65,16.1371]
[1720409598188,0.2,131.79,131.65,16.1371]
[1720409598389,0.2,131.79,131.66,22.9]
[1720409598764,0.2,131.79,131.7,48.7]
[1720409598980,0.2,131.79,131.71,20.17]
[1720409599183,0.2,131.79,131.72,5.7681]
[1720409599380,0.2,131.79,131.73,20.17]
[1720409600775,0.2,131.79,131.74,15.0623]
[1720409601099,0.2,131.79,131.69,23.99923603]
[1720409601309,0.2,131.79,131.67,5.7681]
[1720409601599,0.2,131.79,131.64,63.7623]
[1720409601600,100.0,131.76,131.64,63.7623]
[1720409601769,6.4656,131.77,131.68,7.070403]
[1720409601966,100.0,131.76,131.68,7.070403]
[1720409602183,100.0,131.76,131.64,15.0623]
[1720409602578,6.6356,131.77,131.64,15.0623]
[1720409602894,100.17,131.76,131.64,15.0623]
[1720409603686,100.0,131.73,131.64,15.0623]
[1720409604574,0.17,131.76,131.64,15.0623]
[1720409604785,100.0,131.75,131.65,20.0]
[1720409605384,100.0,131.76,131.65,20.0]
[1720409605592,100.0,131.76,131.66,0.17]
[1720409606402,6.4656,131.77,131.66,0.17]
[1720409606906,100.0,131.78,131.66,0.17]
[1720409607084,0.2,131.79,131.66,0.17]
[1720409607268,0.2,131.79,131.67,48.7]
[1720409607589,0.2,131.79,131.7,16.4571]
[1720409607794,0.2,131.79,131.71,20.17]
[1720409608170,0.2,131.79,131.71,68.87]
[1720409609992,0.04513191,131.81,131.71,68.87]
[1720409610290,0.04513191,131.81,131.75,48.7]
[1720409610483,0.04513191,131.81,131.76,31.7911]
[1720409611275,0.8520024,131.86,131.77,22.9]
[1720409611483,0.8520024,131.86,131.78,20.17]
[1720409611684,0.8520024,131.86,131.79,20.0]
[1720409611888,0.8520024,131.86,131.78,0.17]
[1720409612087,0.8520024,131.86,131.77,0.17]
[1720409614282,0.8520024,131.86,131.78,48.7]
[1720409614483,0.2,131.89,131.78,48.7]
[1720409614484,0.2,131.89,131.79,43.07]
[1720409614688,0.2,131.89,131.79,20.17]
[1720409614889,100.2,131.89,131.79,20.17]
[1720409615092,100.2,131.89,131.79,20.0]
[1720409615486,100.2,131.89,131.77,20.0]
[1720409615688,100.0,131.85,131.76,17.81381247]
[1720409615885,100.0,131.85,131.76,11.6211]
[1720409616097,100.0,131.87,131.76,11.6211]
[1720409616302,6.1961,131.88,131.76,11.6211]
[1720409616880,0.2,131.89,131.76,34.5211]
[1720409617202,0.2,131.89,131.77,43.07]
[1720409617578,0.2,131.89,131.79,22.9]
[1720409617898,0.2,131.89,131.82,48.7]
[1720409618193,0.2,131.89,131.83,20.17]
[1720409618394,6.5045,131.97,131.84,16.4454]
[1720409618631,1.0520024,131.99,131.85,28.6681]
[1720409618904,1.0520024,131.99,131.87,22.9]
[1720409619113,1.0520024,131.99,131.88,20.17]
[1720409619295,1.0520024,131.99,131.89,0.17]
[1720409620182,1.0520024,131.99,131.88,0.17]
[1720409620795,100.0,131.96,131.87,20.0]
[1720409621000,100.0,131.98,131.86,20.0]
[1720409621188,100.0,131.96,131.86,20.0]
[1720409621781,1.0520024,131.99,131.86,20.0]
[1720409622111,1.0520024,131.99,131.9,48.7]
[1720409622277,1.0520024,131.99,131.91,20.0]
[1720409622805,1.0520024,131.99,131.92,15.2694]
[1720409622997,1.0520024,131.99,131.94,48.7]
[1720409623297,266.1173,132.11,131.94,48.7]
[1720409623298,100.0,132.1,131.95,20.17]
[1720409623680,100.2,132.09,131.95,20.17]
[1720409623881,0.2,132.09,131.95,20.17]
[1720409624082,100.0,132.07,131.95,20.17]
[1720409624299,100.2,132.09,131.95,20.17]
[1720409625407,0.2,132.09,131.95,20.17]
[1720409625621,0.2,132.09,131.98,48.7]
[1720409625821,0.2,132.09,131.99,20.0]
[1720409626298,0.2,132.09,131.97,0.17]
[1720409626490,100.0,132.08,131.96,0.17]
[1720409627396,0.2,132.09,131.96,0.17]
[1720409627799,0.2,132.09,131.98,48.7]
[1720409627998,0.2,132.09,131.99,20.17]
[1720409629114,0.2,132.09,132.0,0.42538315]
[1720409629321,0.2,132.09,132.04,48.7]
[1720409629605,0.2,132.09,132.05,20.0]
[1720409630107,0.2,132.09,132.01,20.17]
[1720409630701,0.7391585,132.09,132.01,20.17]
[1720409631203,0.7391585,132.09,132.0,15.1878]
[1720409632692,0.7391585,132.09,132.01,20.0]
[1720409634199,0.7391585,132.09,132.02,22.9]
[1720409634419,0.7391585,132.09,132.03,20.17]
[1720409634592,0.7391585,132.09,132.03,0.17]
[1720409634791,0.7391585,132.09,132.02,0.17]
[1720409634999,15.4771,132.18,132.04,48.7]
[1720409635199,100.2,132.19,132.05,20.17]
[1720409635200,0.2,132.19,132.05,20.17]
[1720409636192,0.2,132.19,132.05,20.0]
[1720409636398,100.0,132.13,132.03,5.7681]
[1720409636716,0.2,132.19,132.03,5.7681]
[1720409636717,100.0,132.16,132.03,5.7681]
[1720409637504,0.2,132.19,132.03,5.7681]
[1720409637900,0.2,132.19,132.05,16.0845]
[1720409638106,0.2,132.19,132.06,0.17]
[1720409638301,0.2,132.19,132.08,48.7]
[1720409638629,0.2,132.19,132.09,20.17]
[1720409639715,0.2,132.19,132.12,54.4681]
[1720409640021,0.2,132.19,132.13,20.0]
[1720409640529,0.04494965,132.22,132.14,16.0845]
[1720409640751,106.2974,132.3,132.16,48.7]
[1720409640907,106.2974,132.3,132.17,20.0]
[1720409641102,100.0,132.3,132.18,0.17]
[1720409641323,21.8456,132.35,132.18,0.17]
[1720409641520,21.8456,132.35,132.2,48.7]
[1720409641718,1.526953,132.29,132.21,20.17]